fUSD/lending_fUSD_20240718
["ID","MTS","AMOUNT","RATE_DAILY","PERIOD"]
[332510342,1721286634425,-216.66572879,0.00014795,2]
[332510349,1721286638180,-283.32427121,0.00014795,2]
[332510351,1721286638190,-277.373124,0.00014795,2]
[332510353,1721286638201,-301.64527612,0.00014799,2]
[332510354,1721286638216,-1100.0,0.000148,5]
[332510355,1721286638226,-500.0,0.00014879,2]
[332510356,1721286638236,-200.0,0.00014879,2]
[332510357,1721286638247,-500.0,0.0001488,2]
[332510358,1721286638258,-500.0,0.0001488,2]
[332510359,1721286638268,-500.0,0.0001488,2]
[332510360,1721286638279,-200.0,0.0001488,2]
[332510361,1721286638290,-641.9578,0.0001489,2]
[332510362,1721286638300,-678.2117,0.0001489,2]
[332510363,1721286638310,-183.76438528,0.000149,2]
[332510364,1721286638320,-1600.0,0.000149,5]
[332510365,1721286638331,-314.81316402,0.000149,2]
[332510366,1721286638341,-157.03278882,0.000149,2]
[332510367,1721286638351,-220.64636717,0.0001493,2]
[332510368,1721286638362,-208.95928661,0.0001493,2]
[332510369,1721286638372,-155.0,0.0001493,2]
[332510370,1721286638382,-155.85655265,0.00014931,2]
[332510371,1721286638391,-272.98577188,0.00014972,2]
[332510372,1721286638401,-276.41441183,0.00014972,2]
[332510373,1721286638411,-439.96599972,0.00014972,2]
[332510374,1721286638421,-155.0,0.00014972,2]
[332510375,1721286638431,-159.38577362,0.00014979,2]
[332510376,1721286638442,-156.0277115,0.00014979,2]
[332510377,1721286638453,-648.70102982,0.00014979,2]
[332510378,1721286638463,-524.6565415,0.00014979,2]
[332510379,1721286638473,-492.72122025,0.00014979,2]
[332510380,1721286638483,-155.0,0.00014979,2]
[332510381,1721286638493,-300.0,0.00014979,2]
[332510382,1721286638504,-228.04541099,0.00014982,2]
[332510383,1721286638514,-307.93308269,0.00014982,2]
[332510384,1721286638524,-4473.27660636,0.0001499,2]
[332510385,1721286638600,-1097.72602781,0.0001499,2]
[332510386,1721286638631,-12912.82205891,0.0001499,2]
[332510387,1721286638655,-619.9401,0.0001499,2]
[332510393,1721286640833,-413.80836051,0.00014889,2]
[332510394,1721286640843,-157.03278882,0.00014914,2]
[332510395,1721286640854,-228.04541099,0.00014979,2]
[332510396,1721286640865,-71601.11343968,0.0001499,2]
[332510397,1721286640877,-558.89350208,0.0001499,2]
[332510398,1721286640889,-492.09818283,0.0001499,2]
[332510399,1721286640915,-982.24203917,0.0001499,2]
[332510400,1721286640927,-662.68309162,0.0001499,2]
[332510431,1721286643707,-273.4074,0.0001499,2]
[332510432,1721286643719,-1715.41144929,0.0001499,2]
[332510433,1721286643731,-1529.58641268,0.0001499,2]
[332510436,1721286643924,-62488.03710374,0.0001499,2]
[332510437,1721286643936,-822.66,0.0001499,2]
[332510438,1721286643952,-628.02367509,0.0001499,2]
[332510439,1721286643964,-54966.38270874,0.0001499,2]
[332510440,1721286643973,-487.89142392,0.00014999,2]
[332510441,1721286643983,-226.36316994,0.00014999,2]
[332510442,1721286643992,-158.67647379,0.00014999,2]
[332510443,1721286644002,-603.0,0.00015,2]
[332510444,1721286644011,-345002.30930991,0.00015,2]
[332510454,1721286646811,-293.75,0.00015,2]
[332510455,1721286646823,-3027.33356884,0.00015,2]
[332510456,1721286646892,-1004.71358728,0.00015,2]
[332510457,1721286646903,-449.0255,0.00015,2]
[332510459,1721287109751,155.05946444,0.00013953,2]
[332510460,1721287109788,317.96,0.00013962,5]
[332510461,1721287131001,552.14,0.00012024,2]
[332510463,1721287190505,157.54,0.00013909,2]
[332510464,1721287194580,250.0,0.00013999,2]
[332510465,1721287288460,200.0,0.00013898,2]
[332510466,1721287292894,167.37,0.00013898,2]
[332510483,1721287314816,165.23,0.00013898,2]
[332510484,1721287351703,889.58,0.00013915,2]
[332510485,1721287435968,19984.5,0.00013903,2]
[332510486,1721287453942,-500.0,0.00014014,2]
[332510487,1721287453966,-268.38,0.00014054,2]
[332510488,1721287453989,-552.14,0.00014288,2]
[332510489,1721287454010,-529.80766427,0.00014389,2]
[332510490,1721287454032,-1000.0,0.0001439,2]
[332510491,1721287454053,-642.12,0.0001445,2]
[332510492,1721287454074,-165.85,0.00014487,2]
[332510493,1721287454095,-648.70102982,0.0001449,2]
[332510494,1721287454117,-300.0,0.000147,5]
[332510495,1721287454138,-5103.66130591,0.0001475,2]
[332510496,1721287484792,550.0,0.00013,2]
[332510497,1721287509109,197792.57267079,0.00014,2]
[332510498,1721287517695,-3115.19689425,0.00014749,2]
[332510499,1721287517718,-484.12389409,0.0001475,2]
[332510500,1721287517742,-158.95048886,0.0001478,2]
[332510501,1721287517767,-700.0,0.000148,5]
[332510502,1721287517791,-3000.0,0.0001485,2]
[332510503,1721287517814,-500.0,0.0001488,2]
[332510504,1721287517836,-200.0,0.0001488,2]
[332510505,1721287517859,-300.0,0.00014888,2]
[332510506,1721287518215,-1327.29489112,0.00014889,5]
[332510507,1721287518239,-192095.8171,0.0001489,2]
[332510508,1721287518263,-1100.0,0.000149,5]
[332510509,1721287518290,-500.0,0.000149,2]
[332510510,1721287518314,-150.75147728,0.000149,2]
[332510511,1721287518337,-316.64511909,0.000149,2]
[332510512,1721287518360,-757.27168714,0.0001493,2]
[332510513,1721287518383,-156.48758241,0.00014972,2]
[332510514,1721287518406,-277.15042018,0.00014972,2]
[332510515,1721287518429,-366.12690226,0.00014982,2]
[332510516,1721287518469,-367.03516126,0.00014987,2]
[332510517,1721287518496,-155.70358391,0.00014987,2]
[332510518,1721287518524,-155.523397,0.00014987,2]
[332510519,1721287518547,-462.6966312,0.00014987,2]
[332510520,1721287518570,-155.0,0.00014987,2]
[332510521,1721287518593,-269.8232753,0.00014987,2]
[332510522,1721287518616,-245.03282195,0.00014987,2]
[332510523,1721287518649,-499.47462034,0.00014988,2]
[332510524,1721287518686,-170.51064677,0.00014988,2]
[332510525,1721287518721,-529.36820483,0.00014988,2]
[332510526,1721287518748,-306.97211217,0.00014989,2]
[332510527,1721287518776,-319.28353567,0.00014989,2]
[332510528,1721287518801,-179.16136988,0.00014989,2]
[332510529,1721287518828,-228.04541099,0.00014989,2]
[332510530,1721287518854,-156.93836575,0.00014989,2]
[332510531,1721287518879,-300.0,0.00014989,2]
[332510532,1721287518904,-413.80836051,0.00014989,2]
[332510533,1721287518929,-228.04541099,0.00014989,2]
[332510534,1721287518955,-214.95209125,0.0001499,2]
[332510535,1721287518980,-163.92127245,0.00014991,2]
[332510536,1721287519004,-439.08494804,0.00014991,2]
[332510537,1721287519031,-29285.5472516,0.00014993,2]
[332510538,1721287519056,-3262.7859052,0.00014993,2]
[332510539,1721287519085,-28311.4797342,0.00014993,2]
[332510540,1721287519110,-154.33032649,0.00014997,2]
[332510541,1721287519135,-1000.0,0.00014999,2]
[332510542,1721287519159,-404.51496052,0.00014999,2]
[332510543,1721287519470,208.95928661,0.00014979,2]
[332510544,1721287519657,249.635812,0.00014795,2]
[332510545,1721287519689,155.67858964,0.00014988,2]
[332510546,1721287520228,155.22321172,0.00014987,2]
[332510547,1721287524669,17243.9038911,0.00014993,2]
[332510548,1721287527709,155.0,0.00014987,2]
[332510549,1721287535049,-499.99,0.00015,2]
[332510550,1721287535072,-593.0,0.00015,2]
[332510551,1721287535096,-479068.75335398,0.00015,2]
[332510552,1721287652994,524.53,0.00012459,2]
[332510576,1721287832518,-500.0,0.00014095,2]
[332510577,1721287832529,-524.53,0.00014723,2]
[332510578,1721287832539,-300.0,0.00014789,2]
[332510579,1721287832549,-1042.29428039,0.0001479,2]
[332510580,1721287832560,-398.25653498,0.0001479,2]
[332510581,1721287832571,-296.5600783,0.0001479,2]
[332510582,1721287832597,-1308.91947455,0.0001479,2]
[332510583,1721287832608,-838.95079957,0.0001479,2]
[332510584,1721287832619,-10078.06183288,0.0001479,2]
[332510585,1721287832632,-1421.18809713,0.0001479,2]
[332510586,1721287832645,-750.26546194,0.0001479,2]
[332510587,1721287832658,-1266.60175907,0.0001479,2]
[332510588,1721287832671,-1181.42468244,0.0001479,2]
[332510589,1721287832684,-129672.15536006,0.0001479,2]
[332510590,1721287832711,-4384.90963218,0.0001479,2]
[332510591,1721287832731,-1133.16129937,0.0001479,2]
[332510592,1721287832743,-10916.93811078,0.0001479,2]
[332510593,1721287832754,-12682.78132822,0.0001479,2]
[332510594,1721287832765,-14723.34836814,0.0001479,2]
[332510596,1721287832775,-249.635812,0.00014795,2]
[332510598,1721287832784,-700.0,0.000148,5]
[332510599,1721287832795,-160.84,0.00014854,2]
[332510600,1721287832804,-1327.29489112,0.00014863,5]
[332510601,1721287832814,-72130.73112217,0.00014864,2]
[332510602,1721287832833,-4121.07153573,0.00014864,2]
[332510604,1721287832845,-23332.16127814,0.00014864,2]
[332510606,1721287832856,-14418.30152426,0.00014864,2]
[332510608,1721287832867,-5409.28786295,0.00014864,2]
[332510611,1721287832878,-1916.80238943,0.00014864,2]
[332510613,1721287832889,-1506.26770272,0.00014864,2]
[332510615,1721287832900,-706.07482364,0.00014864,2]
[332510625,1721287832993,-498.56133196,0.00014864,2]
[332510626,1721287833004,-1103.55713475,0.00014864,2]
[332510627,1721287833015,-518.40021227,0.00014864,2]
[332510633,1721287838865,-158.95048886,0.00014893,2]
[332510634,1721287838888,-150.75147728,0.00014893,2]
[332510636,1721287838898,-208.95928661,0.00014899,2]
[332510637,1721287838908,-1500.0,0.000149,5]
[332510638,1721287838918,-160.79383712,0.000149,2]
[332510639,1721287838927,-316.64511909,0.000149,2]
[332510640,1721287838937,-500.0,0.000149,2]
[332510641,1721287838946,-150.75147728,0.00014914,2]
[332510642,1721287838956,-413.80836051,0.00014931,2]
[332510643,1721287838966,-413.80836051,0.00014931,2]
[332510644,1721287838978,-946.5561817,0.00014979,2]
[332510645,1721287838987,-1195.08005924,0.00014982,2]
[332510646,1721287838997,-842.66369234,0.00014989,2]
[332510647,1721287839007,-56883.925032,0.0001499,2]
[332510648,1721287839016,-214.95209125,0.0001499,2]
[332510649,1721287839025,-160.84,0.0001499,2]
[332510650,1721287839035,-3645.3612826,0.00014993,2]
[332510651,1721287839045,-33139.8407389,0.00014993,2]
[332510652,1721287839056,-4729.1176166,0.00014993,2]
[332510653,1721287839066,-10094.9870444,0.00014993,2]
[332510654,1721287839075,-42730.1704464,0.00014993,2]
[332510655,1721287839085,-2370.163543,0.00014993,2]
[332510656,1721287839095,-175.01637765,0.00014996,2]
[332510657,1721287839104,-154.33032649,0.00014997,2]
[332510658,1721287839114,-155.47008015,0.00014999,2]
[332510659,1721287839124,-176655.82504867,0.00015,2]
[332510660,1721287839140,-5629.96734332,0.00015,2]
[332510661,1721287839197,-1849.20000006,0.00015,2]
[332510662,1721287839208,-3781.2,0.00015,2]
[332510663,1721287839219,-6688.73988323,0.00015,2]
[332510664,1721287839231,-2995.97861347,0.00015,2]
[332510669,1721287840644,-175.02,0.00014129,2]
[332510670,1721287840653,-538.14322836,0.00015,2]
[332510671,1721287840703,-2540.13757757,0.00015,2]
[332510672,1721287840760,-4045.58374783,0.00015,2]
[332510673,1721287840832,-877.16886363,0.00015,2]
[332510687,1721287870849,-66672.12162717,0.00015,2]
[332510688,1721287870859,-1000.0,0.00015,3]
[332510689,1721287870869,-170.08264759,0.00015,2]
[332510690,1721287870879,-1000.0,0.00015,2]
[332510691,1721287870889,-1000.0,0.00015,2]
[332510692,1721287870898,-1000.0,0.00015,2]
[332510693,1721287870908,-1000.0,0.00015,2]
[332510694,1721287870917,-1000.0,0.00015,2]
[332510695,1721287870926,-1000.0,0.00015,2]
[332510696,1721287870936,-1000.0,0.00015,2]
[332510697,1721287870946,-1000.0,0.00015,2]
[332510698,1721287870956,-1000.0,0.00015,2]
[332510699,1721287870965,-1000.0,0.00015,2]
[332510700,1721287870975,-1000.0,0.00015,2]
[332510701,1721287870985,-1000.0,0.00015,2]
[332510702,1721287870995,-1000.0,0.00015,2]
[332510703,1721287871004,-1000.0,0.00015,2]
[332510704,1721287871014,-1000.0,0.00015,2]
[332510705,1721287871023,-1000.0,0.00015,2]
[332510706,1721287871032,-1000.0,0.00015,2]
[332510707,1721287871041,-1000.0,0.00015,2]
[332510708,1721287871050,-1000.0,0.00015,2]
[332510709,1721287871059,-1000.0,0.00015,2]
[332510710,1721287871069,-1000.0,0.00015,2]
[332510711,1721287871078,-1000.0,0.00015,2]
[332510712,1721287871087,-186.2510048,0.00015,2]
[332510713,1721287871096,-7127.96,0.00015,2]
[332510714,1721287871106,-3973.24754201,0.00015,2]
[332510715,1721287871115,-482483.65086246,0.00015,2]
[332510716,1721287871125,-180.46018395,0.00015,2]
[332510717,1721287871134,-151.0,0.00015,2]
[332510718,1721287871143,-151.0,0.00015,2]
[332510719,1721287871152,-151.0,0.00015,2]
[332510720,1721287871162,-151.0,0.00015,2]
[332510721,1721287871171,-151.0,0.00015,2]
[332510722,1721287871180,-151.517416,0.00015,2]
[332510723,1721287871190,-151.0,0.00015,2]
[332510724,1721287871199,-151.0,0.00015,2]
[332510725,1721287871208,-151.0,0.00015,2]
[332510726,1721287871217,-151.0,0.00015,2]
[332510727,1721287871226,-151.0,0.00015,2]
[332510728,1721287871235,-151.0,0.00015,2]
[332510729,1721287871244,-151.0,0.00015,2]
[332510730,1721287871253,-151.0,0.00015,2]
[332510731,1721287871262,-295.002228,0.00015,2]
[332510732,1721287871271,-185.766705,0.00015,2]
[332510733,1721287871280,-151.0,0.00015,2]
[332510734,1721287871289,-537.004728,0.00015,2]
[332510735,1721287871298,-537.004728,0.00015,2]
[332510736,1721287871307,-209.414174,0.00015,2]
[332510737,1721287871316,-168.933526,0.00015,2]
[332510738,1721287871326,-209.414174,0.00015,2]
[332510739,1721287871335,-151.0,0.00015,2]
[332510740,1721287871345,-151.0,0.00015,2]
[332510741,1721287871353,-151.0,0.00015,2]
[332510742,1721287871362,-151.0,0.00015,2]
[332510743,1721287871371,-151.0,0.00015,2]
[332510744,1721287871380,-151.0,0.00015,2]
[332510745,1721287871389,-151.0,0.00015,2]
[332510746,1721287871398,-151.0,0.00015,2]
[332510747,1721287871409,-308.076882,0.00015,2]
[332510748,1721287871418,-308.076882,0.00015,2]
[332510749,1721287871428,-180.19445,0.00015,2]
[332510750,1721287871438,-180.19445,0.00015,2]
[332510751,1721287871447,-197.93919,0.00015,2]
[332510752,1721287871457,-151.0,0.00015,2]
[332510753,1721287871467,-197.93919,0.00015,2]
[332510754,1721287871478,-151.0,0.00015,2]
[332510755,1721287871487,-600.0,0.00015,2]
[332510756,1721287871496,-2500.0,0.00015,2]
[332510757,1721287871506,-499.99,0.00015,2]
[332510758,1721287871516,-691962.16512798,0.00015,2]
[332510759,1721287871526,-151.0,0.00015,2]
[332510760,1721287871535,-151.0,0.00015,2]
[332510761,1721287871544,-151.0,0.00015,2]
[332510762,1721287871553,-151.0,0.00015,2]
[332510763,1721287871564,-151.0,0.00015,2]
[332510764,1721287871575,-2000.0,0.00015,2]
[332510765,1721287871586,-200.0,0.00015,2]
[332510766,1721287871600,-151.0,0.00015,2]
[332510767,1721287871611,-151.0,0.00015,2]
[332510768,1721287871621,-151.0,0.00015,2]
[332510769,1721287871631,-398.11523,0.00015,2]
[332510770,1721287871641,-151.0,0.00015,2]
[332510771,1721287871651,-151.0,0.00015,2]
[332510772,1721287871660,-398.11523,0.00015,2]
[332510773,1721287871669,-151.0,0.00015,2]
[332510774,1721287871681,-3115.19689425,0.00015003,2]
[332510775,1721287871690,-462.6966312,0.00015003,2]
[332510776,1721287871699,-404.51496052,0.00015003,2]
[332510777,1721287871708,-155.22321172,0.00015003,2]
[332510778,1721287871718,-26071.798973,0.00015004,2]
[332510779,1721287871727,-155.0,0.00015013,2]
[332510780,1721287871737,-273.4859839,0.00015013,2]
[332510781,1721287871746,-648.70102982,0.00015013,2]
[332510782,1721287871756,-319.28353567,0.00015013,2]
[332510783,1721287871765,-529.36820483,0.00015013,2]
[332510784,1721287871775,-757.27168714,0.00015013,2]
[332510785,1721287871783,-367.03516126,0.00015013,2]
[332510786,1721287871793,-179.16136988,0.00015013,2]
[332510787,1721287871802,-155.67858964,0.00015013,2]
[332510788,1721287871811,-245.03282195,0.00015013,2]
[332510789,1721287871823,-269.8232753,0.00015013,2]
[332510790,1721287871831,-580.0,0.00015013,2]
[332510791,1721287871841,-155464.0,0.00015014,2]
[332510792,1721287871850,-10601.0,0.00015014,2]
[332510793,1721287871860,-7388.0,0.00015014,2]
[332510794,1721287871869,-161209.0,0.00015014,2]
[332510795,1721287871879,-151.0,0.00015014,2]
[332510796,1721287871888,-151.0,0.00015014,2]
[332510797,1721287871898,-151.0,0.00015014,2]
[332510798,1721287871907,-151.0,0.00015014,2]
[332510799,1721287871917,-151.0,0.00015014,2]
[332510800,1721287871926,-151.0,0.00015014,2]
[332510801,1721287871936,-151.0,0.00015014,2]
[332510802,1721287871945,-151.0,0.00015014,2]
[332510803,1721287871954,-151.0,0.00015014,2]
[332510804,1721287871963,-151.0,0.00015014,2]
[332510805,1721287871973,-151.0,0.00015014,2]
[332510806,1721287871983,-151.0,0.00015014,2]
[332510807,1721287871992,-151.0,0.00015014,2]
[332510808,1721287872001,-151.0,0.00015014,2]
[332510809,1721287872011,-192.437715,0.00015014,2]
[332510810,1721287872020,-192.437715,0.00015014,2]
[332510811,1721287872030,-151.0,0.00015014,2]
[332510812,1721287872039,-151.0,0.00015014,2]
[332510813,1721287872049,-151.0,0.00015014,2]
[332510814,1721287872058,-151.0,0.00015014,2]
[332510815,1721287872069,-151.0,0.00015014,2]
[332510816,1721287872078,-151.0,0.00015014,2]
[332510817,1721287872088,-151.0,0.00015014,2]
[332510818,1721287872097,-151.0,0.00015014,2]
[332510819,1721287872107,-151.0,0.00015014,2]
[332510820,1721287872117,-151.0,0.00015014,2]
[332510821,1721287872126,-151.0,0.00015014,2]
[332510822,1721287872136,-151.0,0.00015014,2]
[332510823,1721287872145,-151.0,0.00015014,2]
[332510824,1721287872156,-151.0,0.00015014,2]
[332510825,1721287872167,-151.0,0.00015014,2]
[332510826,1721287872178,-282.376632,0.00015014,2]
[332510827,1721287872189,-151.0,0.00015014,2]
[332510828,1721287872199,-151.0,0.00015014,2]
[332510829,1721287872209,-151.0,0.00015014,2]
[332510830,1721287872218,-151.775174,0.00015014,2]
[332510831,1721287872227,-151.0,0.00015014,2]
[332510832,1721287872236,-151.0,0.00015014,2]
[332510833,1721287872245,-151.0,0.00015014,2]
[332510834,1721287872254,-151.0,0.00015014,2]
[332510835,1721287872263,-175.976948,0.00015014,2]
[332510836,1721287872272,-151.0,0.00015014,2]
[332510837,1721287872282,-151.0,0.00015014,2]
[332510838,1721287872292,-151.0,0.00015014,2]
[332510839,1721287872302,-151.0,0.00015014,2]
[332510840,1721287872311,-151.0,0.00015014,2]
[332510841,1721287872322,-151.0,0.00015014,2]
[332510842,1721287872331,-151.0,0.00015014,2]
[332510843,1721287872341,-537.004728,0.00015014,2]
[332510844,1721287872350,-537.004728,0.00015014,2]
[332510845,1721287872359,-537.004728,0.00015014,2]
[332510846,1721287872369,-537.004728,0.00015014,2]
[332510847,1721287872378,-209.414174,0.00015014,2]
[332510848,1721287872388,-209.414174,0.00015014,2]
[332510849,1721287872397,-209.414174,0.00015014,2]
[332510850,1721287872407,-209.414174,0.00015014,2]
[332510851,1721287872417,-151.0,0.00015014,2]
[332510852,1721287872426,-151.0,0.00015014,2]
[332510853,1721287872436,-151.0,0.00015014,2]
[332510854,1721287872445,-151.0,0.00015014,2]
[332510855,1721287872454,-151.0,0.00015014,2]
[332510856,1721287872463,-151.0,0.00015014,2]
[332510857,1721287872472,-151.0,0.00015014,2]
[332510858,1721287872481,-151.0,0.00015014,2]
[332510859,1721287872491,-151.0,0.00015014,2]
[332510860,1721287872500,-151.0,0.00015014,2]
[332510861,1721287872511,-151.0,0.00015014,2]
[332510862,1721287872521,-151.0,0.00015014,2]
[332510863,1721287872533,-151.0,0.00015014,2]
[332510864,1721287872543,-151.0,0.00015014,2]
[332510865,1721287872554,-151.0,0.00015014,2]
[332510866,1721287872563,-151.0,0.00015014,2]
[332510867,1721287872574,-151.0,0.00015014,2]
[332510868,1721287872583,-151.0,0.00015014,2]
[332510869,1721287872593,-308.076882,0.00015014,2]
[332510870,1721287872606,-308.076882,0.00015014,2]
[332510871,1721287872616,-308.076882,0.00015014,2]
[332510872,1721287872626,-308.076882,0.00015014,2]
[332510873,1721287872637,-151.0,0.00015014,2]
[332510874,1721287872647,-151.0,0.00015014,2]
[332510875,1721287872658,-216.883706,0.00015014,2]
[332510876,1721287872668,-180.19445,0.00015014,2]
[332510877,1721287872680,-180.19445,0.00015014,2]
[332510878,1721287872691,-180.19445,0.00015014,2]
[332510879,1721287872702,-180.19445,0.00015014,2]
[332510880,1721287872712,-197.93919,0.00015014,2]
[332510881,1721287872722,-197.93919,0.00015014,2]
[332510882,1721287872732,-151.0,0.00015014,2]
[332510883,1721287872742,-151.0,0.00015014,2]
[332510884,1721287872752,-197.93919,0.00015014,2]
[332510885,1721287872762,-197.93919,0.00015014,2]
[332510886,1721287872772,-151.0,0.00015014,2]
[332510887,1721287872782,-151.0,0.00015014,2]
[332510888,1721287872791,-820.070092,0.00015014,2]
[332510889,1721287872801,-820.070092,0.00015014,2]
[332510890,1721287872811,-210.084862,0.00015014,2]
[332510891,1721287872821,-820.070092,0.00015014,2]
[332510892,1721287872831,-820.070092,0.00015014,2]
[332510893,1721287872841,-251.04243,0.00015014,2]
[332510894,1721287872850,-227.694673,0.00015014,2]
[332510895,1721287872860,-227.694673,0.00015014,2]
[332510896,1721287872870,-227.694673,0.00015014,2]
[332510897,1721287872880,-227.694673,0.00015014,2]
[332510898,1721287872890,-151.0,0.00015014,2]
[332510899,1721287872899,-151.0,0.00015014,2]
[332510900,1721287872909,-151.0,0.00015014,2]
[332510901,1721287872919,-281.689696,0.00015014,2]
[332510902,1721287872928,-151.0,0.00015014,2]
[332510903,1721287872938,-151.0,0.00015014,2]
[332510904,1721287872947,-151.0,0.00015014,2]
[332510905,1721287872958,-232.737308,0.00015014,2]
[332510906,1721287872967,-236.418104,0.00015014,2]
[332510907,1721287872978,-236.418104,0.00015014,2]
[332510908,1721287872987,-151.0,0.00015014,2]
[332510909,1721287872997,-151.0,0.00015014,2]
[332510910,1721287873006,-236.418104,0.00015014,2]
[332510911,1721287873016,-236.418104,0.00015014,2]
[332510912,1721287873025,-426.912766,0.00015014,2]
[332510913,1721287873034,-426.912766,0.00015014,2]
[332510914,1721287873045,-426.912766,0.00015014,2]
[332510915,1721287873055,-426.912766,0.00015014,2]
[332510916,1721287873065,-151.0,0.00015014,2]
[332510917,1721287873078,-169.892704,0.00015014,2]
[332510918,1721287873088,-225.350112,0.00015014,2]
[332510919,1721287873097,-225.350112,0.00015014,2]
[332510920,1721287873110,-151.0,0.00015014,2]
[332510921,1721287873119,-151.0,0.00015014,2]
[332510922,1721287873129,-225.350112,0.00015014,2]
[332510923,1721287873138,-225.350112,0.00015014,2]
[332510924,1721287873147,-151.0,0.00015014,2]
[332510925,1721287873157,-151.0,0.00015014,2]
[332510926,1721287873167,-152.623618,0.00015014,2]
[332510927,1721287873176,-229.948135,0.00015014,2]
[332510928,1721287873186,-229.948135,0.00015014,2]
[332510929,1721287873196,-151.0,0.00015014,2]
[332510930,1721287873206,-189.855896,0.00015014,2]
[332510931,1721287873215,-189.855896,0.00015014,2]
[332510932,1721287873225,-229.948135,0.00015014,2]
[332510933,1721287873234,-229.948135,0.00015014,2]
[332510934,1721287873244,-189.855896,0.00015014,2]
[332510935,1721287873253,-189.855896,0.00015014,2]
[332510936,1721287873264,-151.0,0.00015014,2]
[332510937,1721287873275,-290.743775,0.00015014,2]
[332510938,1721287873285,-151.0,0.00015014,2]
[332510939,1721287873295,-151.0,0.00015014,2]
[332510940,1721287873305,-256.643151,0.00015014,2]
[332510941,1721287873316,-256.643151,0.00015014,2]
[332510942,1721287873326,-222.603128,0.00015014,2]
[332510943,1721287873335,-395.839856,0.00015014,2]
[332510944,1721287873345,-222.603128,0.00015014,2]
[332510945,1721287873358,-151.0,0.00015014,2]
[332510946,1721287873368,-151.0,0.00015014,2]
[332510947,1721287873378,-395.839856,0.00015014,2]
[332510948,1721287873389,-151.0,0.00015014,2]
[332510949,1721287873399,-151.0,0.00015014,2]
[332510950,1721287873412,-151.0,0.00015014,2]
[332510951,1721287873424,-447.726977,0.00015014,2]
[332510952,1721287873433,-447.726977,0.00015014,2]
[332510953,1721287873443,-447.726977,0.00015014,2]
[332510954,1721287873453,-447.726977,0.00015014,2]
[332510955,1721287873463,-151.0,0.00015014,2]
[332510956,1721287873472,-151.0,0.00015014,2]
[332510957,1721287873482,-151.0,0.00015014,2]
[332510958,1721287873491,-151.0,0.00015014,2]
[332510959,1721287873501,-151.0,0.00015014,2]
[332510960,1721287873511,-151.0,0.00015014,2]
[332510961,1721287873521,-260.3,0.00015014,2]
[332510962,1721287873531,-10000.0,0.00015014,2]
[332510963,1721287873540,-10000.0,0.00015014,2]
[332510964,1721287873549,-151.0,0.00015014,2]
[332510965,1721287873559,-151.0,0.00015014,2]
[332510966,1721287873571,-10000.0,0.00015014,2]
[332510967,1721287873581,-7198.405112,0.00015014,2]
[332510968,1721287873591,-151.0,0.00015014,2]
[332510969,1721287873604,-151.0,0.00015014,2]
[332510970,1721287873614,-151.0,0.00015014,2]
[332510971,1721287873623,-151.0,0.00015014,2]
[332510972,1721287873634,-151.0,0.00015014,2]
[332510973,1721287873643,-151.0,0.00015014,2]
[332510974,1721287873653,-151.0,0.00015014,2]
[332510975,1721287873663,-151.0,0.00015014,2]
[332510976,1721287873672,-151.0,0.00015014,2]
[332510977,1721287873685,-151.0,0.00015014,2]